[Event "Asian Amateur-ch Open 2022"]
[Site "Muscat"]
[Date "2022.10.02"]
[Round "1.14"]
[White "Al Nofli, Mohammed Saif"]
[Black "Dadabaev, Zhanybek"]
[Result "0-1"]
[ECO "D13"]
[WhiteElo "1370"]
[BlackElo "1902"]
[Annotator "TA"]
[PlyCount "80"]
[EventDate "2022.09.29"]
[EventType "swiss"]
[SourceTitle "playchess.com"]
[Source "ChessBase"]
[SourceQuality "1"]
[TimeControl "5400+30"]

{[%evp 17,79,-5,4,-2,0,0,0,-11,-12,-50,-52,-98,0,-55,-31,-59,-57,-58,-58,-93,-103,-181,-166,-295,-295,-305,-300,-383,-390,-385,-366,-373,-359,-356,-343,-642,-621,-785,-579,-588,-600,-670,-657,-693,-701,-672,-700,-678,-670,-652,-634,-1580,-1500,-5389,-5373,-29996,-29995,-29995,-29996,-29996,-29997,-29998,-29999,-29999]} 1. Nf3 {[%emt 0:00:06]} c5 {[%emt 0:00:45]} 2. c3 {[%emt 0:00:54]} Nc6 {[%emt 0:01:51]} 3. d4 {[%emt 0:00:59]} cxd4 {[%emt 0:02:24]} 4. cxd4 {[%emt 0:01:36]} d5 {[%emt 0:00:07]} 5. g3 {[%emt 0:00:55]} Nf6 {[%emt 0:01:43]} 6. Nc3 {[%emt 0:01:01]} e6 {[%emt 0:03:03]} 7. Bg2 {[%emt 0:01:38]} Be7 {[%emt 0:00:13]} 8. O-O {[%emt 0:00:22]} O-O {[%emt 0:00:02]} 9. Re1 {[%emt 0:01:44]} a6 {[%emt 0:02:18]} 10. a3 {[%emt 0:02:50] D13: Slav Defence: Exchange variation without ...Bf5.} b5 {[%emt 0:01:34]} 11. e4 {[%emt 0:02:48]} dxe4 {[%emt 0:00:41]} 12. Nxe4 {[%emt 0:02:01] The position is equal.} Nxe4 {[%emt 0:01:07]} 13. Rxe4 {[%emt 0:00:43]} Bb7 {[%emt 0:00:20] [#]} 14. Bd2 $146 {[%emt 0:13:13]} (14. Re3 $15) ({Predecessor:} 14. Bf4 Bf6 15. d5 exd5 16. Re2 Rc8 17. Be5 Bxe5 18. Nxe5 Ne7 19. b4 Qd6 20. Nd3 {½-½ (29) Torosyan,L-Butuc,M Chalkidiki 2003}) 14... Nb4 {[%emt 0:05:55]} 15. Re3 {[%emt 0:05:09]} (15. Ne5 $11 Bxe4 16. Bxe4 Qxd4 17. Bxa8 Qxe5 18. Bc3) 15... Nd5 $15 {[%emt 0:00:08]} 16. Re5 {[%emt 0:06:22]} h6 {[%emt 0:03:53]} 17. Rc1 {[%emt 0:03:45]} Rc8 {[%emt 0:01:43]} 18. Ne1 {[%emt 0:04:29] Black keeps a firm grip on the game.} Bf6 {[%emt 0:01:05]} 19. Rh5 {[%emt 0:09:43]} (19. Rxc8 $17 Bxc8 20. Rh5) 19... Qb6 {[%emt 0:08:51]} 20. Be3 {[%emt 0:09:03]} (20. Nc2 {is a better defense.}) 20... Nxe3 $19 {[%emt 0:09:43]} 21. fxe3 {[%emt 0:00:59]} Bg5 {[%emt 0:03:08] This bishop pair is nice.} 22. Kf2 {[%emt 0:04:52]} Bxg2 {[%emt 0:02:40]} 23. Nxg2 {[%emt 0:00:26]} g6 {[%emt 0:01:06]} 24. Rh3 {[%emt 0:01:27]} Rxc1 {[%emt 0:00:36]} 25. Qxc1 {[%emt 0:01:13]} Qxd4 {[%emt 0:00:33]} 26. Nf4 $2 {[%emt 0:02:36]} (26. exd4 Bxc1 27. g4) 26... Qf6 {[%emt 0:00:14]} 27. Ke2 {[%emt 0:02:18]} Rd8 {[%emt 0:00:25] [#] White must now prevent ...e5.} 28. g4 {[%emt 0:02:16]} e5 {[%emt 0:01:38]} 29. Nd3 {[%emt 0:02:03]} Qe6 {[%emt 0:03:34]} 30. Rg3 {[%emt 0:04:27]} Rc8 {[%emt 0:04:34]} 31. Nc5 {[%emt 0:05:19]} Qd5 {[%emt 0:01:37]} 32. b4 {[%emt 0:02:11]} Qa2+ {[%emt 0:06:45]} 33. Qd2 {[%emt 0:02:07]} Qxa3 {[%emt 0:02:15][%cal Oa6a5]} 34. Qd7 {[%emt 0:00:59]} Rd8 {[%emt 0:01:55] [#] Threatens to win with ...Qa2+.} 35. Qc7 {[%emt 0:01:06]} Qc1 {[%emt 0:02:46] ( -> ...Qd1+)} 36. Kf3 {[%emt 0:02:29]} Qh1+ {[%emt 0:03:57] Black mates.} 37. Rg2 {[%emt 0:01:02]} Rd2 {[%emt 0:00:41][%csl Gd2][%cal Rh1g2]} 38. Qb8+ {[%emt 0:00:10]} Kh7 {[%emt 0:00:10][%csl Gd2][%cal Rh1g2]} 39. Ke4 {[%emt 0:01:31]} Qxg2+ {[%emt 0:00:10]} 40. Kxe5 {[%emt 0:00:24]} Qd5# {[%emt 0:00:14] Weighted Error Value: White=0.93/Black=0.11 (very precise)} 0-1

[Event "Asian Amateur-ch Open 2022"]
[Site "Muscat"]
[Date "2022.10.02"]
[Round "1.15"]
[White "Salim Issa, Ali Shamas"]
[Black "Aubrey Armstrong A"]
[Result "1-0"]
[ECO "E92"]
[WhiteElo "1886"]
[BlackElo "1370"]
[Annotator "NA RC COMBH"]
[PlyCount "101"]
[EventDate "2022.09.29"]
[EventType "swiss"]
[SourceTitle "playchess.com"]
[Source "ChessBase"]
[SourceQuality "1"]
[TimeControl "5400+30"]

1. d4 {[%emt 0:00:02]} Nf6 {[%emt 0:00:07]} 2. c4 {[%emt 0:00:25]} g6 {[%emt 0:00:06]} 3. Nf3 {[%emt 0:00:10]} Bg7 {[%emt 0:00:10]} 4. Nc3 {[%emt 0:00:11]} O-O {[%emt 0:00:31]} 5. e4 {[%emt 0:00:09]} d6 {[%emt 0:00:05]} 6. Be2 {[%emt 0:00:30]} e5 {[%emt 0:00:37]} 7. dxe5 {[%emt 0:00:58]} dxe5 {[%emt 0:00:07]} 8. Qxd8 {[%emt 0:00:11]} Rxd8 {[%emt 0:00:07]} 9. Bg5 {[%emt 0:00:08]} Re8 {[%emt 0:07:02]} 10. O-O {[%emt 0:01:49]} c6 {[%emt 0:06:10]} 11. Rfd1 {[%emt 0:01:42]} Be6 {[%emt 0:04:23]} 12. c5 {[%emt 0:02:16]} Nbd7 {[%emt 0:05:35]} 13. b4 {[%emt 0:00:10]} h6 {[%emt 0:15:13]} 14. Bh4 {[%emt 0:00:34]} g5 {[%emt 0:00:21]} 15. Bg3 {[%emt 0:00:07]} Nh7 {[%emt 0:02:01]} 16. a3 {[%emt 0:00:33]} f5 {[%emt 0:07:09]} 17. exf5 {[%emt 0:07:06]} Bxf5 {[%emt 0:00:11]} 18. Rac1 {[%emt 0:00:18]} Rad8 {[%emt 0:03:35]} 19. Nd2 {[%emt 0:01:39]} Bg6 {[%emt 0:11:55]} 20. Nde4 {[%emt 0:00:46]} Bxe4 {[%emt 0:04:18]} 21. Nxe4 {[%emt 0:02:26]} Bf8 {[%emt 0:00:58]} 22. Bh5 {[%emt 0:01:08]} Re7 {[%emt 0:03:32]} 23. Bg6 {[%emt 0:00:34]} Bg7 {[%emt 0:02:34]} 24. Rd6 {[%emt 0:00:31]} Nhf8 {[%emt 0:04:04]} 25. Bf5 {[%emt 0:00:15]} Rde8 {[%emt 0:07:02]} 26. Rcd1 {[%emt 0:00:18]} Nb8 {[%emt 0:00:29]} 27. Rd8 {[%emt 0:00:51]} Na6 {[%emt 0:00:34]} 28. Bg4 {[%emt 0:00:14]} Nc7 {[%emt 0:01:21]} 29. Bh5 {[%emt 0:00:18]} Rxd8 {[%emt 0:01:26]} 30. Rxd8 {[%emt 0:00:01]} Nce6 {[%emt 0:00:08]} 31. Ra8 {[%emt 0:00:25]} b6 {[%emt 0:01:18]} 32. cxb6 {[%emt 0:01:06]} axb6 {[%emt 0:00:03]} 33. h4 {[%emt 0:00:34]} Rc7 {[%emt 0:04:38]} 34. Bg4 {[%emt 0:01:13]} Kf7 {[%emt 0:00:26]} 35. Nd6+ {[%emt 0:00:48]} Ke7 {[%emt 0:01:59]} 36. Nf5+ {[%emt 0:00:24]} Kf6 {[%emt 0:00:01]} 37. hxg5+ {[%emt 0:00:42]} hxg5 {[%emt 0:00:13]} 38. Nd6 {[%emt 0:00:08]} Ke7 {[%emt 0:00:15]} 39. Nc8+ {[%emt 0:02:46]} Kf7 {[%emt 0:01:41]} 40. Bh5+ {[%emt 0:01:01]} Kf6 {[%emt 0:00:50]} 41. Nd6 {[%emt 0:01:37]} Rd7 {[%emt 0:00:52]} 42. Ne4+ {[%emt 0:00:33]} Kf5 {[%emt 0:00:47]} 43. f3 {[%emt 0:00:25]} Rd1+ {[%emt 0:00:22]} 44. Kh2 {[%emt 0:00:03]} Nf4 {[%emt 0:01:18]} 45. Bg4+ {[%emt 0:00:38]} Kg6 {[%emt 0:00:04]} 46. Rc8 {[%emt 0:00:23]} Rc1 {[%emt 0:00:16]} 47. Nd6 {[%emt 0:00:21]} Rc3 {[%emt 0:01:03]} 48. Bf5+ {[%emt 0:00:21]} Kh6 {[%emt 0:01:25]} 49. Be1 {[%emt 0:01:03]} Re3 {[%emt 0:03:45]} 50. Nf7+ {[%emt 0:02:40]} Kh5 {[%emt 0:00:04]} 51. g4# {[%emt 0:00:22]} 1-0

[Event "Asian Amateur-ch Open 2022"]
[Site "Muscat"]
[Date "2022.10.02"]
[Round "1.16"]
[White "Al Yahmadi, Anas"]
[Black "Sharaf, Khaleel"]
[Result "0-1"]
[ECO "C12"]
[WhiteElo "1365"]
[BlackElo "1874"]
[Annotator "NA RC COMBH"]
[PlyCount "89"]
[EventDate "2022.09.29"]
[EventType "swiss"]
[SourceTitle "playchess.com"]
[Source "ChessBase"]
[SourceQuality "1"]
[TimeControl "5400+30"]

1. e4 {[%emt 0:00:09]} e6 {[%emt 0:00:13]} 2. Nc3 {[%emt 0:01:19]} d5 {[%emt 0:00:31]} 3. d4 {[%emt 0:00:22]} Nf6 {[%emt 0:00:55]} 4. Bg5 {[%emt 0:05:44]} Bb4 {[%emt 0:00:32]} 5. e5 {[%emt 0:06:25]} h6 {[%emt 0:00:18]} 6. Bd2 {[%emt 0:07:25]} Bxc3 {[%emt 0:00:21]} 7. Bxc3 {[%emt 0:02:39]} Ne4 {[%emt 0:00:17]} 8. Qf3 {[%emt 0:05:37]} c5 {[%emt 0:04:26]} 9. dxc5 {[%emt 0:09:50]} Nd7 {[%emt 0:03:10]} 10. Bb5 {[%emt 0:01:56]} Qc7 {[%emt 0:03:12]} 11. Qe3 {[%emt 0:05:23]} O-O {[%emt 0:04:52]} 12. Bxd7 {[%emt 0:04:13]} Bxd7 {[%emt 0:00:02]} 13. Nf3 {[%emt 0:02:28]} Rfc8 {[%emt 0:06:24]} 14. Bd4 {[%emt 0:07:02]} a5 {[%emt 0:13:44]} 15. h4 {[%emt 0:02:32]} a4 {[%emt 0:02:31]} 16. c3 {[%emt 0:02:02]} Nxc5 {[%emt 0:01:52]} 17. g4 {[%emt 0:00:29]} Ne4 {[%emt 0:07:56]} 18. h5 {[%emt 0:00:26]} a3 {[%emt 0:02:00]} 19. b3 {[%emt 0:00:33]} Qd8 {[%emt 0:07:58]} 20. g5 {[%emt 0:01:28]} Nxg5 {[%emt 0:01:34]} 21. Nxg5 {[%emt 0:03:38]} Qxg5 {[%emt 0:00:33]} 22. Qxg5 {[%emt 0:00:58]} hxg5 {[%emt 0:00:12]} 23. Rg1 {[%emt 0:00:24]} Bb5 {[%emt 0:14:55]} 24. Rxg5 {[%emt 0:00:31]} Bd3 {[%emt 0:01:01]} 25. Kd2 {[%emt 0:00:10]} Be4 {[%emt 0:00:24]} 26. Rag1 {[%emt 0:01:19]} g6 {[%emt 0:00:54]} 27. f3 {[%emt 0:01:41]} Bf5 {[%emt 0:00:10]} 28. hxg6 {[%emt 0:02:44]} fxg6 {[%emt 0:02:39]} 29. Rc1 {[%emt 0:05:02]} b5 {[%emt 0:00:03]} 30. b4 {[%emt 0:00:31]} Rc7 {[%emt 0:02:21]} 31. Rg2 {[%emt 0:01:01]} Rh7 {[%emt 0:00:15]} 32. Ke3 {[%emt 0:02:00]} Kf7 {[%emt 0:00:37]} 33. Rd1 {[%emt 0:01:51]} Rah8 {[%emt 0:00:20]} 34. Rdd2 {[%emt 0:01:01]} Rh3 {[%emt 0:00:35]} 35. Rgf2 {[%emt 0:01:11]} Ke7 {[%emt 0:00:57]} 36. Kf4 {[%emt 0:00:38]} g5+ {[%emt 0:05:38]} 37. Ke3 {[%emt 0:00:16]} g4 {[%emt 0:03:10]} 38. Ke2 {[%emt 0:02:14]} gxf3+ {[%emt 0:00:34]} 39. Rxf3 {[%emt 0:01:16]} Bg4 {[%emt 0:00:03]} 40. Rdd3 {[%emt 0:01:06]} Rxf3 {[%emt 0:00:03]} 41. Rxf3 {[%emt 0:00:04]} Rh3 {[%emt 0:00:03]} 42. Kd2 {[%emt 0:02:44]} Bxf3 {[%emt 0:00:05]} 43. Kc2 {[%emt 0:00:02]} Rh2+ {[%emt 0:00:09]} 44. Kb3 {[%emt 0:01:24]} Bd1+ {[%emt 0:00:03]} 45. Kxa3 {[%emt 0:11:12]} 0-1

[Event "Asian Amateur-ch Open 2022"]
[Site "Muscat"]
[Date "2022.10.02"]
[Round "1.17"]
[White "Bagheri, Majid"]
[Black "Al Rashdi, Mohammed"]
[Result "1-0"]
[ECO "C54"]
[WhiteElo "1870"]
[BlackElo "1322"]
[Annotator "NA RC COMBH"]
[PlyCount "107"]
[EventDate "2022.09.29"]
[EventType "swiss"]
[SourceTitle "playchess.com"]
[Source "ChessBase"]
[SourceQuality "1"]
[TimeControl "5400+30"]

1. e4 {[%emt 0:00:12]} e5 {[%emt 0:00:19]} 2. Nf3 {[%emt 0:00:13]} Nc6 {[%emt 0:00:09]} 3. Bc4 {[%emt 0:00:18]} Bc5 {[%emt 0:00:15]} 4. c3 {[%emt 0:00:17]} Nf6 {[%emt 0:00:13]} 5. d3 {[%emt 0:00:23]} O-O {[%emt 0:00:58]} 6. Bb3 {[%emt 0:00:28]} d6 {[%emt 0:00:57]} 7. Bg5 {[%emt 0:00:19]} h6 {[%emt 0:02:23]} 8. Bh4 {[%emt 0:00:23]} Bg4 {[%emt 0:01:54]} 9. h3 {[%emt 0:00:17]} Be6 {[%emt 0:07:05]} 10. Bc2 {[%emt 0:00:41]} d5 {[%emt 0:04:07]} 11. Nbd2 {[%emt 0:01:59]} dxe4 {[%emt 0:04:40]} 12. Nxe4 {[%emt 0:07:35]} Be7 {[%emt 0:00:25]} 13. Bxf6 {[%emt 0:03:59]} Bxf6 {[%emt 0:00:18]} 14. Nc5 {[%emt 0:05:04]} Qe7 {[%emt 0:14:26]} 15. Nxe6 {[%emt 0:00:51]} Qxe6 {[%emt 0:00:20]} 16. O-O {[%emt 0:00:16]} Qd6 {[%emt 0:07:11]} 17. Re1 {[%emt 0:00:25]} a6 {[%emt 0:00:58]} 18. Qe2 {[%emt 0:00:49]} Rfe8 {[%emt 0:02:53]} 19. Rad1 {[%emt 0:10:42]} g6 {[%emt 0:02:41]} 20. a3 {[%emt 0:07:24]} b5 {[%emt 0:02:57]} 21. Bb3 {[%emt 0:01:50]} Re7 {[%emt 0:04:04]} 22. Qe4 {[%emt 0:00:27]} Rae8 {[%emt 0:02:08]} 23. Qxg6+ {[%emt 0:02:52]} Bg7 {[%emt 0:03:14]} 24. Qg4 {[%emt 0:02:25]} Kh8 {[%emt 0:03:56]} 25. Nh4 {[%emt 0:00:52]} Rg8 {[%emt 0:14:19]} 26. Nf5 {[%emt 0:00:56]} Qf6 {[%emt 0:00:20]} 27. Nxe7 {[%emt 0:01:13]} Nxe7 {[%emt 0:01:14]} 28. Qf3 {[%emt 0:00:40]} Nf5 {[%emt 0:05:40]} 29. g4 {[%emt 0:03:01]} Nh4 {[%emt 0:04:08]} 30. Qxf6 {[%emt 0:00:43]} Bxf6 {[%emt 0:00:22]} 31. Bxf7 {[%emt 0:02:30]} Nf3+ {[%emt 0:03:22]} 32. Kf1 {[%emt 0:00:21]} Rf8 {[%emt 0:00:52]} 33. Re3 {[%emt 0:08:36]} Nd2+ {[%emt 0:03:06]} 34. Rxd2 {[%emt 0:01:10]} Bg5 {[%emt 0:00:27]} 35. Rde2 {[%emt 0:00:28]} Bxe3 {[%emt 0:00:11]} 36. Rxe3 {[%emt 0:00:09]} Rxf7 {[%emt 0:00:10]} 37. Rxe5 {[%emt 0:00:17]} Kg7 {[%emt 0:01:37]} 38. Ke2 {[%emt 0:00:20]} Kg6 {[%emt 0:01:14]} 39. Ke3 {[%emt 0:00:15]} Rf6 {[%emt 0:00:42]} 40. f4 {[%emt 0:00:12]} Rc6 {[%emt 0:00:55]} 41. d4 {[%emt 0:00:17]} Rd6 {[%emt 0:00:51]} 42. d5 {[%emt 0:00:19]} Kf6 {[%emt 0:00:30]} 43. h4 {[%emt 0:01:41]} c6 {[%emt 0:00:32]} 44. g5+ {[%emt 0:00:42]} hxg5 {[%emt 0:00:29]} 45. hxg5+ {[%emt 0:00:02]} Kf7 {[%emt 0:00:35]} 46. Kd4 {[%emt 0:02:30]} cxd5 {[%emt 0:00:33]} 47. f5 {[%emt 0:00:29]} Rc6 {[%emt 0:00:45]} 48. Rxd5 {[%emt 0:00:52]} Rc4+ {[%emt 0:00:11]} 49. Ke5 {[%emt 0:00:09]} Rg4 {[%emt 0:00:26]} 50. g6+ {[%emt 0:00:27]} Ke7 {[%emt 0:01:16]} 51. f6+ {[%emt 0:00:13]} Ke8 {[%emt 0:00:18]} 52. f7+ {[%emt 0:00:46]} Ke7 {[%emt 0:00:59]} 53. Rd7+ {[%emt 0:01:53]} Kxd7 {[%emt 0:00:31]} 54. f8=Q {[%emt 0:00:15]} 1-0

[Event "Asian Amateur-ch Open 2022"]
[Site "Muscat"]
[Date "2022.10.02"]
[Round "1.18"]
[White "Al Rahbi, Ahmed Badar"]
[Black "Hayabik, Husain"]
[Result "1/2-1/2"]
[ECO "E24"]
[WhiteElo "1321"]
[BlackElo "1828"]
[Annotator "NA RC COMBH"]
[PlyCount "52"]
[EventDate "2022.09.29"]
[EventType "swiss"]
[SourceTitle "playchess.com"]
[Source "ChessBase"]
[SourceQuality "1"]
[TimeControl "5400+30"]

1. d4 {[%emt 0:00:03]} Nf6 {[%emt 0:00:22]} 2. c4 {[%emt 0:00:21]} e6 {[%emt 0:00:55]} 3. Nc3 {[%emt 0:00:20]} Bb4 {[%emt 0:00:20]} 4. a3 {[%emt 0:01:58]} Bxc3+ {[%emt 0:00:35]} 5. bxc3 {[%emt 0:00:02]} d5 {[%emt 0:00:02]} 6. Bg5 {[%emt 0:02:07]} h6 {[%emt 0:00:29]} 7. Bh4 {[%emt 0:00:57]} c5 {[%emt 0:00:24]} 8. cxd5 {[%emt 0:06:25]} Qa5 {[%emt 0:00:33]} 9. Rc1 {[%emt 0:11:13]} Nxd5 {[%emt 0:00:33]} 10. dxc5 {[%emt 0:03:55]} Nc6 {[%emt 0:01:09]} 11. Qb3 {[%emt 0:03:45]} Qxc5 {[%emt 0:00:39]} 12. e3 {[%emt 0:03:10]} O-O {[%emt 0:00:25]} 13. c4 {[%emt 0:01:20]} Nb6 {[%emt 0:00:31]} 14. Nf3 {[%emt 0:02:57]} Qa5+ {[%emt 0:00:17]} 15. Nd2 {[%emt 0:01:17]} g5 {[%emt 0:00:11]} 16. Bg3 {[%emt 0:00:42]} Rd8 {[%emt 0:00:03]} 17. Bd3 {[%emt 0:03:13]} Na4 {[%emt 0:01:13]} 18. Qc2 {[%emt 0:12:34]} Nc5 {[%emt 0:01:12]} 19. Bh7+ {[%emt 0:01:05]} Kg7 {[%emt 0:00:15]} 20. Rd1 {[%emt 0:08:17]} f5 {[%emt 0:00:11]} 21. h4 {[%emt 0:09:20]} g4 {[%emt 0:01:51]} 22. Qb2+ {[%emt 0:03:09]} Kxh7 {[%emt 0:00:03]} 23. Qf6 {[%emt 0:00:46]} Ne4 {[%emt 0:02:31]} 24. Qf7+ {[%emt 0:00:36]} Kh8 {[%emt 0:00:05]} 25. Bc7 {[%emt 0:01:30]} Qxd2+ {[%emt 0:03:01]} 26. Rxd2 {[%emt 0:06:40]} Rxd2 {[%emt 1:25:40]} 1/2-1/2

[Event "Asian Amateur-ch Open 2022"]
[Site "Muscat"]
[Date "2022.10.02"]
[Round "1.19"]
[White "Gabdushev, Arman"]
[Black "Al Shereiqi, Nasir"]
[Result "1-0"]
[ECO "B14"]
[WhiteElo "1827"]
[BlackElo "1305"]
[Annotator "NA RC COMBH"]
[PlyCount "102"]
[EventDate "2022.09.29"]
[EventType "swiss"]
[SourceTitle "playchess.com"]
[Source "ChessBase"]
[SourceQuality "1"]
[TimeControl "5400+30"]

1. e4 {[%emt 0:00:03]} c6 {[%emt 0:00:24]} 2. d4 {[%emt 0:00:08]} d5 {[%emt 0:00:16]} 3. exd5 {[%emt 0:01:51]} cxd5 {[%emt 0:00:25]} 4. c4 {[%emt 0:00:05]} Nf6 {[%emt 0:02:10]} 5. Nc3 {[%emt 0:00:29]} e6 {[%emt 0:04:22]} 6. Nf3 {[%emt 0:00:57]} Bb4 {[%emt 0:00:32]} 7. Bf4 {[%emt 0:04:14]} O-O {[%emt 0:03:34]} 8. a3 {[%emt 0:00:27]} Bxc3+ {[%emt 0:01:39]} 9. bxc3 {[%emt 0:00:06]} Qa5 {[%emt 0:00:33]} 10. Qb3 {[%emt 0:01:15]} Ne4 {[%emt 0:04:22]} 11. Qb4 {[%emt 0:04:22]} Nc6 {[%emt 0:01:12]} 12. Qxa5 {[%emt 0:01:44]} Nxa5 {[%emt 0:00:02]} 13. cxd5 {[%emt 0:01:04]} exd5 {[%emt 0:01:55]} 14. Rc1 {[%emt 0:01:05]} Be6 {[%emt 0:01:46]} 15. Bd3 {[%emt 0:00:37]} Nc4 {[%emt 0:01:20]} 16. Bxc4 {[%emt 0:02:43]} dxc4 {[%emt 0:03:09]} 17. Nd2 {[%emt 0:00:38]} Nxd2 {[%emt 0:04:13]} 18. Kxd2 {[%emt 0:00:10]} Bf5 {[%emt 0:04:08]} 19. f3 {[%emt 0:01:10]} Rfe8 {[%emt 0:00:36]} 20. Rce1 {[%emt 0:01:45]} a6 {[%emt 0:04:57]} 21. g4 {[%emt 0:00:30]} Bd3 {[%emt 0:00:33]} 22. a4 {[%emt 0:01:09]} b5 {[%emt 0:01:41]} 23. a5 {[%emt 0:00:17]} Rac8 {[%emt 0:02:47]} 24. Rxe8+ {[%emt 0:00:42]} Rxe8 {[%emt 0:00:02]} 25. Re1 {[%emt 0:00:14]} Rxe1 {[%emt 0:00:25]} 26. Kxe1 {[%emt 0:00:03]} f5 {[%emt 0:00:24]} 27. g5 {[%emt 0:00:19]} g6 {[%emt 0:02:28]} 28. Be5 {[%emt 0:01:26]} Kf7 {[%emt 0:00:31]} 29. d5 {[%emt 0:00:14]} Ke7 {[%emt 0:02:56]} 30. Kd2 {[%emt 0:00:11]} Kd7 {[%emt 0:02:21]} 31. Ke3 {[%emt 0:00:18]} Bf1 {[%emt 0:01:14]} 32. Kf2 {[%emt 0:01:00]} Bd3 {[%emt 0:00:03]} 33. Ke3 {[%emt 0:00:27]} Bf1 {[%emt 0:00:18]} 34. f4 {[%emt 0:00:05]} Bg2 {[%emt 0:00:26]} 35. Kd4 {[%emt 0:00:04]} Be4 {[%emt 0:10:12]} 36. Kc5 {[%emt 0:00:28]} Bf3 {[%emt 0:01:06]} 37. d6 {[%emt 0:02:02]} Bb7 {[%emt 0:00:21]} 38. Kb6 {[%emt 0:00:06]} Bc8 {[%emt 0:00:03]} 39. h3 {[%emt 0:01:25]} Kd8 {[%emt 0:05:05]} 40. Kc6 {[%emt 0:01:22]} Bd7+ {[%emt 0:00:05]} 41. Kc5 {[%emt 0:00:19]} Bc8 {[%emt 0:01:39]} 42. Bf6+ {[%emt 0:01:19]} Kd7 {[%emt 0:00:54]} 43. Bd4 {[%emt 0:02:20]} Bb7 {[%emt 0:00:43]} 44. Kb6 {[%emt 0:02:32]} Bc8 {[%emt 0:13:58]} 45. Bc5 {[%emt 0:01:11]} Ke8 {[%emt 0:01:52]} 46. Kc7 {[%emt 0:00:55]} Bd7 {[%emt 0:00:05]} 47. Kb7 {[%emt 0:02:00]} Kd8 {[%emt 0:05:35]} 48. Kxa6 {[%emt 0:00:51]} Bc6 {[%emt 0:00:01]} 49. Kb6 {[%emt 0:00:21]} Kd7 {[%emt 0:00:01]} 50. a6 {[%emt 0:00:23]} Bd5 {[%emt 0:00:07]} 51. Kxb5 {[%emt 0:00:23]} Be4 {[%emt 0:16:29]} 1-0

[Event "Asian Amateur-ch Open 2022"]
[Site "Muscat"]
[Date "2022.10.02"]
[Round "1.20"]
[White "Ghaith Saeed Alnuaimi"]
[Black "Al Ansi Amin"]
[Result "1/2-1/2"]
[ECO "E06"]
[WhiteElo "1269"]
[BlackElo "1806"]
[Annotator "NA RC COMBH"]
[PlyCount "56"]
[EventDate "2022.09.29"]
[EventType "swiss"]
[SourceTitle "playchess.com"]
[Source "ChessBase"]
[SourceQuality "1"]
[TimeControl "5400+30"]

1. d4 {[%emt 0:00:03]} Nf6 {[%emt 0:00:16]} 2. c4 {[%emt 0:00:20]} e6 {[%emt 0:00:21]} 3. Nf3 {[%emt 0:00:04]} d5 {[%emt 0:00:36]} 4. g3 {[%emt 0:00:07]} Be7 {[%emt 0:03:40]} 5. Bg2 {[%emt 0:00:06]} O-O {[%emt 0:01:45]} 6. Qc2 {[%emt 0:00:10]} b6 {[%emt 0:00:42]} 7. cxd5 {[%emt 0:01:16]} exd5 {[%emt 0:02:45]} 8. Ne5 {[%emt 0:00:12]} Bb7 {[%emt 0:00:38]} 9. O-O {[%emt 0:00:10]} h6 {[%emt 0:02:03]} 10. Rd1 {[%emt 0:02:58]} Re8 {[%emt 0:01:16]} 11. Bf4 {[%emt 0:00:20]} Bd6 {[%emt 0:00:59]} 12. h4 {[%emt 0:05:48]} c5 {[%emt 0:02:24]} 13. e3 {[%emt 0:17:07]} Na6 {[%emt 0:10:36]} 14. a3 {[%emt 0:03:41]} Nc7 {[%emt 0:10:01]} 15. Nc3 {[%emt 0:00:57]} cxd4 {[%emt 0:09:27]} 16. exd4 {[%emt 0:00:02]} Ne6 {[%emt 0:01:36]} 17. Qd2 {[%emt 0:16:19]} Nxf4 {[%emt 0:21:55]} 18. Qxf4 {[%emt 0:00:44]} Qe7 {[%emt 0:01:11]} 19. Re1 {[%emt 0:01:40]} a6 {[%emt 0:13:15]} 20. Qd2 {[%emt 0:00:10]} Qc7 {[%emt 0:00:51]} 21. Rac1 {[%emt 0:01:04]} Qd8 {[%emt 0:00:52]} 22. Re2 {[%emt 0:12:23]} Rc8 {[%emt 0:05:26]} 23. Rce1 {[%emt 0:00:40]} Qc7 {[%emt 0:02:01]} 24. Bh3 {[%emt 0:03:43]} Rcd8 {[%emt 0:00:48]} 25. Bg2 {[%emt 0:01:38]} Rc8 {[%emt 0:00:03]} 26. Bh3 {[%emt 0:00:12]} Rcd8 {[%emt 0:00:21]} 27. Bg2 {[%emt 0:00:57]} Rc8 {[%emt 0:00:23]} 28. Bh3 {[%emt 0:00:22]} Rcd8 {[%emt 0:00:30]} 1/2-1/2

[Event "Asian Amateur-ch Open 2022"]
[Site "Muscat"]
[Date "2022.10.02"]
[Round "1.21"]
[White "Nadeem Aziz"]
[Black "Salem Muhsan Shuaib"]
[Result "1-0"]
[ECO "D30"]
[WhiteElo "1797"]
[BlackElo "1227"]
[Annotator "NA RC COMBH"]
[PlyCount "67"]
[EventDate "2022.09.29"]
[EventType "swiss"]
[SourceTitle "playchess.com"]
[Source "ChessBase"]
[SourceQuality "1"]
[TimeControl "5400+30"]

1. d4 {[%emt 0:00:01]} d5 {[%emt 0:00:14]} 2. Nf3 {[%emt 0:00:09]} Nf6 {[%emt 0:00:12]} 3. c4 {[%emt 0:00:13]} e6 {[%emt 0:00:29]} 4. Bg5 {[%emt 0:00:08]} Be7 {[%emt 0:00:39]} 5. Nbd2 {[%emt 0:00:05]} O-O {[%emt 0:00:39]} 6. e3 {[%emt 0:00:08]} c5 {[%emt 0:01:23]} 7. Be2 {[%emt 0:01:09]} cxd4 {[%emt 0:03:57]} 8. exd4 {[%emt 0:00:02]} Nc6 {[%emt 0:01:33]} 9. O-O {[%emt 0:00:58]} b6 {[%emt 0:08:37]} 10. Rc1 {[%emt 0:02:56]} Bb7 {[%emt 0:00:34]} 11. a3 {[%emt 0:04:22]} a5 {[%emt 0:03:18]} 12. h3 {[%emt 0:05:04]} h6 {[%emt 0:03:41]} 13. Bf4 {[%emt 0:01:50]} Rc8 {[%emt 0:02:40]} 14. Be3 {[%emt 0:15:38]} Re8 {[%emt 0:11:45]} 15. Qb3 {[%emt 0:02:22]} dxc4 {[%emt 0:03:28]} 16. Nxc4 {[%emt 0:00:35]} Nd5 {[%emt 0:03:07]} 17. Nce5 {[%emt 0:04:02]} Bf6 {[%emt 0:09:10]} 18. Bb5 {[%emt 0:02:02]} Bxe5 {[%emt 0:10:55]} 19. Nxe5 {[%emt 0:01:04]} Qd6 {[%emt 0:03:04]} 20. Qa4 {[%emt 0:05:20]} Nde7 {[%emt 0:01:54]} 21. Nc4 {[%emt 0:02:54]} Qc7 {[%emt 0:10:47]} 22. Nxb6 {[%emt 0:11:28]} Rcd8 {[%emt 0:05:54]} 23. Nc4 {[%emt 0:07:54]} Qb8 {[%emt 0:13:22]} 24. Nxa5 {[%emt 0:00:48]} Rc8 {[%emt 0:00:25]} 25. Nxb7 {[%emt 0:00:03]} Qxb7 {[%emt 0:00:02]} 26. Qa6 {[%emt 0:00:58]} Qxa6 {[%emt 0:00:26]} 27. Bxa6 {[%emt 0:00:02]} Rc7 {[%emt 0:00:16]} 28. Bb5 {[%emt 0:00:39]} Rec8 {[%emt 0:00:26]} 29. Rc5 {[%emt 0:01:05]} Nd8 {[%emt 0:00:59]} 30. Rfc1 {[%emt 0:00:42]} Rxc5 {[%emt 0:00:12]} 31. dxc5 {[%emt 0:00:49]} Ndc6 {[%emt 0:00:48]} 32. b4 {[%emt 0:00:32]} Na7 {[%emt 0:00:24]} 33. Ba6 {[%emt 0:00:53]} Rc6 {[%emt 0:00:30]} 34. b5 {[%emt 0:00:25]} 1-0